[Event "44th Chess Olympiad Women 2022"]
[Site "Chennai"]
[Date "2022.08.01"]
[Round "4.16"]
[White "Koubova, Anna Marie"]
[Black "Guo, Yu Han"]
[Result "1-0"]
[WhiteElo "2115"]
[BlackElo "1630"]
[Annotator "NA RC"]
[PlyCount "71"]
[EventDate "2022.??.??"]
[TimeControl "60"]

1. d4 {[%emt 0:00:07]} d5 {[%emt 0:00:06]} 2. c4 {[%emt 0:00:11]} e6 {[%emt 0:
00:00]} 3. Nf3 {[%emt 0:00:10]} Be7 {[%emt 0:00:17]} 4. g3 {[%emt 0:00:45]} Nf6
{[%emt 0:00:23]} 5. Bg2 {[%emt 0:00:21]} c6 {[%emt 0:00:30]} 6. Qc2 {[%emt 0:
00:00]} O-O {[%emt 0:00:56]} 7. O-O {[%emt 0:00:13]} b6 {[%emt 0:00:53]} 8.
Nbd2 {[%emt 0:00:54]} Bb7 {[%emt 0:03:49]} 9. e4 {[%emt 0:01:10]} dxc4 {
[%emt 0:02:57]} 10. Nxc4 {[%emt 0:02:26]} c5 {[%emt 0:02:01]} 11. e5 {[%emt 0:
00:00]} Nd5 {[%emt 0:05:09]} 12. dxc5 {[%emt 0:01:39]} bxc5 {[%emt 0:01:53]}
13. Rd1 {[%emt 0:10:01]} Qc7 {[%emt 0:02:35]} 14. a3 {[%emt 0:13:57]} h6 {
[%emt 0:03:22]} 15. Bd2 {[%emt 0:06:06]} Nc6 {[%emt 0:01:16]} 16. Rac1 {
[%emt 0:00:39]} Ba6 {[%emt 0:03:46]} 17. Qe4 {[%emt 0:14:45]} Rfd8 {[%emt 0:00:
00]} 18. Bf1 {[%emt 0:11:33]} Bf8 {[%emt 0:03:03]} 19. h4 {[%emt 0:07:41]} Nb6
{[%emt 0:10:15]} 20. b4 {[%emt 0:18:21]} Bb7 {[%emt 0:20:50]} 21. Nd6 {[%emt 0:
00:00]} Bxd6 {[%emt 0:11:16]} 22. exd6 {[%emt 0:00:08]} Qxd6 {[%emt 0:03:48]}
23. bxc5 {[%emt 0:00:30]} Qe7 {[%emt 0:00:31]} 24. Qg4 {[%emt 0:01:30]} f5 {
[%emt 0:00:48]} 25. Qg6 {[%emt 0:03:39]} Nd7 {[%emt 0:01:39]} 26. Re1 {[%emt 0:
00:00]} Nf8 {[%emt 0:03:14]} 27. Qh5 {[%emt 0:00:23]} Rd7 {[%emt 0:02:16]} 28.
Bf4 {[%emt 0:00:21]} Nd8 {[%emt 0:01:15]} 29. Bd6 {[%emt 0:01:06]} Qf6 {
[%emt 0:00:27]} 30. Ne5 {[%emt 0:00:17]} Bd5 {[%emt 0:01:56]} 31. Bxf8 {
[%emt 0:00:49]} Rb7 {[%emt 0:00:59]} 32. Bd6 {[%emt 0:00:20]} Nc6 {[%emt 0:00:
00]} 33. Nxc6 {[%emt 0:00:14]} Bxc6 {[%emt 0:00:04]} 34. Bg2 {[%emt 0:00:59]}
Bxg2 {[%emt 0:00:40]} 35. Kxg2 {[%emt 0:00:05]} Rb2 {[%emt 0:00:14]} 36. Be5 {
[%emt 0:00:22]} 1-0

[Event "44th Chess Olympiad Women 2022"]
[Site "Chennai"]
[Date "2022.08.01"]
[Round "4.16"]
[White "Mills, Morgen"]
[Black "Petrova, Kristyna"]
[Result "1-0"]
[WhiteElo "1993"]
[BlackElo "2238"]
[Annotator "TA"]
[PlyCount "119"]
[EventDate "2022.??.??"]
[TimeControl "60"]

{[%evp 19,119,44,41,2,18,0,59,9,81,55,69,60,41,35,44,19,9,6,53,28,34,21,21,0,
45,10,9,0,0,0,11,0,0,0,0,0,0,0,0,0,0,0,0,0,0,0,45,44,91,77,79,7,70,0,35,35,109,
35,35,35,35,22,245,237,393,393,441,441,440,441,443,439,421,387,381,371,427,420,
425,412,513,497,497,484,579,460,417,0,597,570,546,568,972,868,912,518,439,0,
870,809,815,773]} 1. e4 {[%emt 0:00:03]} c5 {[%emt 0:00:06]} 2. Nf3 {[%emt 0:
00:00]} d6 {[%emt 0:00:08]} 3. Bb5+ {[%emt 0:00:06]} Nd7 {[%emt 0:00:12]} 4. d4
{[%emt 0:00:48]} cxd4 {[%emt 0:00:16]} 5. Qxd4 {[%emt 0:00:11]} a6 {[%emt 0:00:
00]} 6. Bxd7+ {[%emt 0:00:22]} Bxd7 {[%emt 0:00:02]} 7. O-O {[%emt 0:01:10]} e5
{[%emt 0:05:56]} 8. Qd3 {[%emt 0:00:28]} h6 {[%emt 0:01:49]} 9. c4 {[%emt 0:00:
00]} Nf6 {[%emt 0:06:15]} 10. Nc3 {[%emt 0:00:14]} Be7 {[%emt 0:09:06][%cal
Yb7b5]} 11. b3 {[%emt 0:01:23] B51: Sicilian: Moscow Variation (3 Bb5+)
without 3...Bd7.} O-O {[%emt 0:10:25]} 12. a4 {[%emt 0:01:56]} Be6 {[%emt 0:00:
00]} (12... b5 $11) 13. Rd1 {[%emt 0:07:52]} (13. Ba3 $14) 13... Qc7 {[%emt 0:
00:00]} (13... b5 $1 $11) 14. h3 {[%emt 0:09:36]} Rac8 {[%emt 0:14:42]} 15. Be3
{[%emt 0:03:22] [#]} Nd7 $146 {[%emt 0:02:38]} ({Predecessor:} 15... b6 16. Nh4
Rfd8 17. Nf5 Bxf5 18. exf5 Qc6 19. Rac1 Kf8 20. Qe2 Qb7 21. Nd5 Nxd5 22. Rxd5 {
1-0 (31) Zeier,K (2228)-Staudacher,T (2004) Tegernsee 2018}) 16. Nd5 {[%emt 0:
00:00]} Bxd5 {[%emt 0:00:03]} 17. Qxd5 {[%emt 0:00:10]} Qc6 {[%emt 0:05:10]}
18. Qxc6 {[%emt 0:07:47]} Rxc6 {[%emt 0:00:04]} (18... bxc6 $11 19. b4 (19. c5
Nxc5 20. Bxc5 dxc5 $11) 19... Nf6) 19. Ne1 {[%emt 0:01:40]} Bg5 {[%emt 0:02:18]
} 20. Bxg5 {[%emt 0:07:12]} hxg5 {[%emt 0:00:02]} 21. Nd3 {[%emt 0:00:23]} Rb6
{[%emt 0:09:16]} 22. Rab1 {[%emt 0:06:47] Threatening a5.} a5 $1 {[%emt 0:00:
00]} 23. f3 {[%emt 0:01:49]} Rc8 {[%emt 0:02:05]} 24. Kf2 {[%emt 0:01:01]} f6 {
[%emt 0:00:32]} 25. Rdc1 {[%emt 0:05:28]} Kf7 {[%emt 0:02:54]} 26. Rc3 {
[%emt 0:02:15]} Nf8 {[%emt 0:02:03]} 27. Ne1 {[%emt 0:04:50]} Ne6 {[%emt 0:00:
00]} 28. Nc2 {[%emt 0:00:31]} Nc5 {[%emt 0:01:35]} 29. Na3 $1 {[%emt 0:00:31]}
Rb4 {[%emt 0:04:39]} 30. Ke2 {[%emt 0:05:24]} g6 {[%emt 0:05:06]} 31. Kd2 {
[%emt 0:06:26]} f5 {[%emt 0:00:15]} 32. Nb5 {[%emt 0:01:24]} Rc6 {[%emt 0:00:
00] [#] aiming for ...Nxa4.} 33. Kc2 {[%emt 0:03:49]} Ke7 {[%emt 0:04:13]} (
33... fxe4 $14 34. fxe4 Nxe4) 34. Re1 {[%emt 0:08:23]} Ne6 {[%emt 0:01:12]} 35.
g3 {[%emt 0:04:17]} ({Better is} 35. Rce3 $16) 35... Rc8 {[%emt 0:01:29]} (
35... f4 $11) 36. Rd1 {[%emt 0:01:54]} ({White should play} 36. exf5 $1 $14
gxf5 37. Rd3) 36... fxe4 {[%emt 0:00:30]} (36... Rh8 $5 {[%cal Rh8h3]}) 37.
fxe4 {[%emt 0:00:47]} (37. Nxd6 $2 Nd4+ 38. Rxd4 exd4 39. Nxc8+ Kd7 40. fxe4
dxc3 $19) 37... Rf8 {[%emt 0:00:23] [#]} (37... Nc5 $14) 38. Rd2 {[%emt 0:00:
00]} ({Much worse is} 38. Rxd6 $6 Nd4+ 39. Nxd4 (39. Rxd4 exd4 40. Nxd4 Rf2+
41. Kd1 Rh2 $11) 39... Kxd6 40. Nb5+ Kd7 $11) (38. Kb2 $1 $16) 38... Nc5 $14 {
[%emt 0:00:44]} 39. Re3 {[%emt 0:00:48]} ({Much weaker is} 39. Nxd6 Rb6 40. Rd5
Na6 $15) 39... Rf1 {[%emt 0:00:30]} 40. Nxd6 {[%emt 0:01:39]} Ne6 $2 {[%emt 0:
00:00] Black is now going downhill.} (40... Kf6 $11 {and Black stays safe.})
41. Nb5 $18 {[%emt 0:30:40]} Rh1 $2 {[%emt 0:03:35]} (41... Kf6 {was necessary.
} 42. Kb2 Nc5) 42. Rd5 {[%emt 0:00:00]} Nd4+ {[%emt 0:01:19]} 43. Nxd4 {
[%emt 0:00:00]} exd4 {[%emt 0:00:02]} 44. Rxd4 {[%emt 0:00:00]} Rxh3 {[%emt 0:
00:00] Endgame KRR-KRR} 45. Rd5 {[%emt 0:00:00][%csl Ya5,Yg5]} g4 {[%emt 0:00:
05]} 46. Rg5 {[%emt 0:00:00]} Rb6 {[%emt 0:00:47]} 47. Rxg4 {[%emt 0:00:00]}
Rf6 {[%emt 0:03:32]} 48. e5 {[%emt 0:00:00]} Re6 {[%emt 0:00:00]} 49. Rd4 {
[%emt 0:00:00]} b6 {[%emt 0:00:30]} 50. Kd3 {[%emt 0:00:00]} Rh1 {[%emt 0:00:
48]} 51. Ke4 {[%emt 0:00:00]} Rc1 {[%emt 0:01:03]} 52. Kf4 {[%emt 0:00:00]}
Rf1+ {[%emt 0:00:16]} 53. Ke4 {[%emt 0:00:00]} (53. Kg4 $142) 53... Rc1 $1 {
[%emt 0:00:06]} 54. g4 {[%emt 0:00:00]} Rf1 {[%emt 0:00:27]} 55. Rd5 {[%emt 0:
00:00]} Rf8 {[%emt 0:06:29]} 56. Rf3 {[%emt 0:00:00] Threatens to win with
Rxf8.} Rc8 {[%emt 0:03:10]} 57. Kd4 {[%emt 0:00:00] And now Rh3 would win.} Rh8
{[%emt 0:01:47]} 58. Ke4 {[%emt 0:00:00]} (58. c5 $142) 58... Rc8 $1 {[%emt 0:
03:14]} 59. Rfd3 {[%emt 0:00:00]} Rc7 {[%emt 0:00:11]} 60. Rd6 {[%emt 0:00:00]
Weighted Error Value: White=0.24 (precise) /Black=0.33} 1-0

[Event "44th Chess Olympiad Women 2022"]
[Site "Chennai"]
[Date "2022.08.01"]
[Round "4.16"]
[White "Ouellet, Maili-Jade"]
[Black "Worek, Joanna"]
[Result "0-1"]
[WhiteElo "2239"]
[BlackElo "2280"]
[Annotator "NA RC"]
[PlyCount "72"]
[EventDate "2022.??.??"]
[TimeControl "60"]

1. d4 {[%emt 0:00:03]} Nf6 {[%emt 0:00:08]} 2. c4 {[%emt 0:00:05]} e6 {[%emt 0:
00:00]} 3. Nc3 {[%emt 0:00:06]} Bb4 {[%emt 0:00:06]} 4. f3 {[%emt 0:00:07]} c5
{[%emt 0:06:29]} 5. d5 {[%emt 0:00:06]} d6 {[%emt 0:00:41]} 6. e4 {[%emt 0:00:
00]} b5 {[%emt 0:01:25]} 7. Bd2 {[%emt 0:00:48]} bxc4 {[%emt 0:04:34]} 8. Bxc4
{[%emt 0:00:08]} O-O {[%emt 0:00:48]} 9. Nge2 {[%emt 0:03:09]} Ba6 {[%emt 0:00:
00]} 10. Bxa6 {[%emt 0:14:45]} Nxa6 {[%emt 0:00:06]} 11. dxe6 {[%emt 0:07:30]}
fxe6 {[%emt 0:00:07]} 12. e5 {[%emt 0:02:35]} dxe5 {[%emt 0:05:13]} 13. Qb3 {
[%emt 0:02:30]} Qb6 {[%emt 0:01:42]} 14. a3 {[%emt 0:08:18]} Bxc3 {[%emt 0:00:
00]} 15. Qxc3 {[%emt 0:00:07]} e4 {[%emt 0:00:07]} 16. f4 {[%emt 0:03:57]} Nc7
{[%emt 0:05:35]} 17. b4 {[%emt 0:32:37]} cxb4 {[%emt 0:03:51]} 18. Qxb4 {
[%emt 0:00:26]} Qa6 {[%emt 0:01:29]} 19. Qa5 {[%emt 0:01:24]} Qxa5 {[%emt 0:00:
00]} 20. Bxa5 {[%emt 0:00:05]} Ncd5 {[%emt 0:00:03]} 21. O-O {[%emt 0:04:01]}
Rab8 {[%emt 0:00:10]} 22. Nd4 {[%emt 0:03:16]} Rb2 {[%emt 0:09:55]} 23. Nxe6 {
[%emt 0:01:08]} Rfb8 {[%emt 0:00:01]} 24. h3 {[%emt 0:01:55]} Ne3 {[%emt 0:00:
00]} 25. Rf2 {[%emt 0:00:13]} Rb1+ {[%emt 0:00:14]} 26. Rxb1 {[%emt 0:00:13]}
Rxb1+ {[%emt 0:00:02]} 27. Kh2 {[%emt 0:00:11]} Nf1+ {[%emt 0:01:09]} 28. Rxf1
{[%emt 0:01:02]} Rxf1 {[%emt 0:00:04]} 29. g3 {[%emt 0:04:31]} e3 {[%emt 0:00:
00]} 30. Nd4 {[%emt 0:00:10]} Ne4 {[%emt 0:01:13]} 31. h4 {[%emt 0:03:37]} Rf2+
{[%emt 0:02:00]} 32. Kh3 {[%emt 0:00:05]} Ra2 {[%emt 0:01:34]} 33. Bb4 {
[%emt 0:02:44]} h5 {[%emt 0:00:40]} 34. Nf3 {[%emt 0:01:58]} Nf2+ {[%emt 0:00:
00]} 35. Kg2 {[%emt 0:00:05]} Nd3+ {[%emt 0:00:35]} 36. Kg1 {[%emt 0:01:11]} e2
{[%emt 0:00:36]} 0-1

[Event "44th Chess Olympiad Women 2022"]
[Site "Chennai"]
[Date "2022.08.01"]
[Round "4.16"]
[White "Pilsova, Karolina"]
[Black "Demchenko, Svitlana"]
[Result "1/2-1/2"]
[WhiteElo "2230"]
[BlackElo "2122"]
[Annotator "TA"]
[PlyCount "119"]
[EventDate "2022.??.??"]
[TimeControl "60"]

{[%evp 9,119,53,54,60,71,76,64,56,68,62,96,60,62,52,61,56,64,66,88,81,93,77,
125,93,124,126,154,132,129,87,101,96,97,98,101,104,105,62,56,0,104,97,96,85,93,
80,83,80,117,97,129,74,110,85,85,80,73,62,66,62,70,69,114,62,70,0,58,41,54,49,
60,60,116,50,131,56,56,50,62,59,62,47,56,51,47,46,46,46,46,46,46,44,46,44,46,
46,46,46,46,46,46,46,46,46,46,46,46,46,48,48,64,45]} 1. Nf3 {[%emt 0:00:04]} f5
{[%emt 0:00:08]} 2. d3 {[%emt 0:00:31]} Nf6 {[%emt 0:00:09]} 3. e4 {[%emt 0:00:
00]} d6 {[%emt 0:00:07]} 4. e5 {[%emt 0:15:09]} Ng4 {[%emt 0:11:51]} 5. exd6 {
[%emt 0:03:47]} cxd6 {[%emt 0:00:43]} 6. d4 {[%emt 0:01:06] [#] A04: Unusual
lines after 1 Nf3 and King's Indian Attack.} g6 $146 {[%emt 0:09:09]} ({
Predecessor:} 6... Qb6 7. h3 Nf6 8. Nc3 e6 9. Bd3 Be7 10. O-O O-O 11. Re1 Nc6
12. d5 Nxd5 13. Nxd5 exd5 {½-½ (31) Gupta,M (2301)-Kivijarvi,J (2231) Ohrid
2009}) 7. Bc4 {[%emt 0:03:29]} Bg7 {[%emt 0:01:24]} 8. O-O {[%emt 0:07:27]} d5
{[%emt 0:10:35]} 9. Bb3 {[%emt 0:02:15]} O-O {[%emt 0:00:26]} 10. Nc3 {[%emt 0:
00:00][%cal Yb1c3,Yc3e2,Ye2f4]} e6 {[%emt 0:01:25]} 11. Bg5 $36 {[%emt 0:01:26]
White is more active.} Nf6 {[%emt 0:05:47]} 12. Ne2 {[%emt 0:04:43]} h6 {
[%emt 0:02:39]} 13. Bxf6 {[%emt 0:05:29]} Qxf6 {[%emt 0:00:00]} 14. Nf4 {
[%emt 0:00:37]} Nc6 {[%emt 0:02:39][%cal Rc6d4]} 15. c3 {[%emt 0:00:00]} Kh7 {
[%emt 0:04:07]} (15... Bd7 $142) 16. Re1 {[%emt 0:01:52]} Bd7 {[%emt 0:01:32]}
17. Ba4 {[%emt 0:06:01] aiming for Bxc6.} Rae8 {[%emt 0:08:37]} 18. Bxc6 {
[%emt 0:10:01]} Bxc6 {[%emt 0:00:08]} 19. Ne5 {[%emt 0:00:12]} g5 {[%emt 0:00:
59]} 20. Nh5 {[%emt 0:03:18] 0x0.001680dd1005dp-1022s more active pieces. Pair
of Knights!} Qe7 {[%emt 0:03:43]} 21. Nxg7 {[%emt 0:01:00]} Qxg7 {[%emt 0:01:
52]} 22. Qd3 {[%emt 0:02:23]} Rf6 {[%emt 0:05:43]} 23. Ng4 {[%emt 0:00:00]} Rg6
{[%emt 0:02:44]} 24. Ne5 {[%emt 0:00:02]} (24. Ne3 $1 $14) 24... Rf6 $16 {
[%emt 0:00:06]} 25. Re2 {[%emt 0:00:10]} Kg8 {[%emt 0:07:17]} 26. f4 {[%emt 0:
01:15]} Re7 {[%emt 0:04:46]} 27. Rae1 {[%emt 0:02:32]} Be8 {[%emt 0:00:00]} 28.
Rf2 {[%emt 0:00:23]} Kh8 {[%emt 0:00:50]} 29. Re3 {[%emt 0:01:08]} Qg8 {
[%emt 0:01:36]} 30. Rg3 {[%emt 0:03:52]} (30. b3 $142) 30... Rg7 {[%emt 0:00:
00]} 31. Qd2 {[%emt 0:02:32]} (31. fxg5 {is more complex.} hxg5 32. Rh3+ Rh7
33. Rxh7+ Qxh7 34. c4) 31... g4 {[%emt 0:04:05]} 32. Qe1 {[%emt 0:03:11]} h5 {
[%emt 0:00:49]} 33. h4 {[%emt 0:03:39]} Bb5 {[%emt 0:04:40]} 34. Rd2 {[%emt 0:
00:00]} Qc8 {[%emt 0:01:00]} 35. Re3 {[%emt 0:01:26]} Rc7 {[%emt 0:00:37]} 36.
Qa1 {[%emt 0:01:34]} ({Better is} 36. c4 $16 Bxc4 37. Rc2) 36... Kg8 {[%emt 0:
00:00][%cal Yh8g8,Yg8g7,Yg7f6]} 37. Qe1 {[%emt 0:01:07]} (37. Rd1 $14) 37...
Rf8 {[%emt 0:01:04]} (37... Kh8 $1 $11) 38. Qf2 {[%emt 0:01:10]} Kg7 {[%emt 0:
00:45]} 39. Rg3 {[%emt 0:00:20]} Kf6 {[%emt 0:00:50]} 40. Qe1 {[%emt 0:00:00]
[%cal Yc3c4]} Re8 {[%emt 0:01:03] [#]} (40... Qd8 $14) 41. Rd1 {[%emt 0:00:00]}
(41. c4 $1 $16 {[%cal Rc4b5]} dxc4 42. d5) 41... b6 {[%emt 0:02:36] [#]} (41...
Qd8 $14) 42. Ra1 {[%emt 0:02:40]} (42. c4 $1 $16 {[%cal Rc4b5]} Ba6 43. cxd5
exd5 44. Re3) 42... a5 {[%emt 0:05:56] White is slightly better.} 43. Qd1 {
[%emt 0:01:50]} Ba6 {[%emt 0:01:31]} 44. Qb3 {[%emt 0:01:38]} Qb7 {[%emt 0:03:
15]} 45. a3 {[%emt 0:01:29]} Rec8 {[%emt 0:01:22]} 46. Re3 {[%emt 0:00:00]} Re7
{[%emt 0:02:00]} 47. Rae1 {[%emt 0:00:22]} Qc7 {[%emt 0:00:40]} 48. Qc2 {
[%emt 0:01:31][%cal Ye5g6] Threatens to win with Ng6!} Qd6 {[%emt 0:00:40]} 49.
Qf2 {[%emt 0:01:00]} Bb5 {[%emt 0:01:17]} 50. Qg3 {[%emt 0:00:28]} Rcc7 {
[%emt 0:03:17]} 51. Kh1 {[%emt 0:02:15]} Ba6 {[%emt 0:04:02]} 52. Qf2 {[%emt 0:
00:00]} Bb5 {[%emt 0:00:22]} 53. Qc2 {[%emt 0:00:29]} Rc8 {[%emt 0:00:25]} 54.
Qb3 {[%emt 0:00:57] Dancing on a razor blade.} Ba6 {[%emt 0:00:24]} 55. Qa4 {
[%emt 0:01:01]} Bb7 {[%emt 0:01:26]} 56. Qb5 {[%emt 0:00:45]} Ra8 {[%emt 0:00:
00]} 57. Kg1 {[%emt 0:02:08]} Ba6 {[%emt 0:00:44]} 58. Qa4 {[%emt 0:00:47]} Bb7
{[%emt 0:00:05]} 59. Kh2 {[%emt 0:02:13]} Rc8 {[%emt 0:00:59]} 60. Qb5 {
[%emt 0:00:34] Weighted Error Value: White=0.14 (very precise) /Black=0.12 
(very precise)} 1/2-1/2

[Event "44th Chess Olympiad Women 2022"]
[Site "Chennai"]
[Date "2022.08.01"]
[Round "4.17"]
[White "Bach, Ngoc Thuy Duong"]
[Black "Reyes Jara, Paula"]
[Result "1-0"]
[WhiteElo "2192"]
[BlackElo "1858"]
[Annotator "NA RC"]
[PlyCount "115"]
[EventDate "2022.??.??"]
[TimeControl "60"]

1. d4 {[%emt 0:00:08]} Nf6 {[%emt 0:00:18]} 2. c4 {[%emt 0:00:11]} g6 {[%emt 0:
00:00]} 3. Nc3 {[%emt 0:00:13]} Bg7 {[%emt 0:00:26]} 4. e4 {[%emt 0:00:08]} d6
{[%emt 0:00:30]} 5. Nf3 {[%emt 0:00:10]} O-O {[%emt 0:00:58]} 6. Be2 {[%emt 0:
00:00]} e5 {[%emt 0:01:20]} 7. O-O {[%emt 0:00:25]} Nc6 {[%emt 0:00:39]} 8. d5
{[%emt 0:00:34]} Ne7 {[%emt 0:00:24]} 9. b4 {[%emt 0:00:11]} a5 {[%emt 0:02:00]
} 10. Ba3 {[%emt 0:02:28]} b6 {[%emt 0:02:21]} 11. bxa5 {[%emt 0:00:34]} Rxa5 {
[%emt 0:01:27]} 12. Bb4 {[%emt 0:00:16]} Ra7 {[%emt 0:01:25]} 13. a4 {[%emt 0:
00:00]} c5 {[%emt 0:03:05]} 14. dxc6 {[%emt 0:16:17]} Nxc6 {[%emt 0:01:20]} 15.
Qxd6 {[%emt 0:02:43]} Bb7 {[%emt 0:04:48]} 16. Ba3 {[%emt 0:08:47]} Nd4 {
[%emt 0:02:50]} 17. Qxd8 {[%emt 0:00:44]} Rxd8 {[%emt 0:01:20]} 18. Be7 {
[%emt 0:07:49]} Rc8 {[%emt 0:08:19]} 19. Nxd4 {[%emt 0:02:51]} exd4 {[%emt 0:
00:00]} 20. Nb5 {[%emt 0:00:06]} Raa8 {[%emt 0:00:36]} 21. e5 {[%emt 0:04:55]}
Ne4 {[%emt 0:07:54]} 22. f4 {[%emt 0:02:36]} Bc6 {[%emt 0:09:05]} 23. Nxd4 {
[%emt 0:04:03]} Ra7 {[%emt 0:18:37]} 24. Bb4 {[%emt 0:18:58]} Bxa4 {[%emt 0:00:
00]} 25. Rfc1 {[%emt 0:04:34]} g5 {[%emt 0:02:37]} 26. Bf3 {[%emt 0:06:48]} f5
{[%emt 0:03:14]} 27. Nxf5 {[%emt 0:00:41]} Nc5 {[%emt 0:00:41]} 28. Bxc5 {
[%emt 0:02:49]} Rxc5 {[%emt 0:01:01]} 29. Nxg7 {[%emt 0:04:07]} Kxg7 {[%emt 0:
00:00]} 30. Bd1 {[%emt 0:00:26]} Rca5 {[%emt 0:00:22]} 31. Rxa4 {[%emt 0:00:13]
} Rxa4 {[%emt 0:00:08]} 32. Bxa4 {[%emt 0:00:04]} Rxa4 {[%emt 0:00:03]} 33. f5
{[%emt 0:00:08]} Kf7 {[%emt 0:07:46]} 34. Rb1 {[%emt 0:05:38]} Rxc4 {[%emt 0:
00:00]} 35. Rxb6 {[%emt 0:00:05]} Rf4 {[%emt 0:00:23]} 36. Rb7+ {[%emt 0:00:23]
} Kf8 {[%emt 0:01:49]} 37. Rb8+ {[%emt 0:01:14]} Ke7 {[%emt 0:01:19]} 38. f6+ {
[%emt 0:00:55]} Ke6 {[%emt 0:02:14]} 39. Re8+ {[%emt 0:00:24]} Kf7 {[%emt 0:00:
00]} 40. Re7+ {[%emt 0:00:19]} Kg8 {[%emt 0:00:01]} 41. Rg7+ {[%emt 0:30:08]}
Kf8 {[%emt 0:31:47]} 42. Rxg5 {[%emt 0:00:14]} Re4 {[%emt 0:00:00]} 43. Kf2 {
[%emt 0:00:00]} h6 {[%emt 0:00:00]} 44. Rh5 {[%emt 0:00:00]} Kf7 {[%emt 0:00:
00]} 45. Rxh6 {[%emt 0:00:00]} Rxe5 {[%emt 0:00:00]} 46. g4 {[%emt 0:00:00]}
Re4 {[%emt 0:00:00]} 47. Kg3 {[%emt 0:00:00]} Re2 {[%emt 0:00:00]} 48. h3 {
[%emt 0:00:00]} Ra2 {[%emt 0:00:00]} 49. g5 {[%emt 0:00:00]} Ra4 {[%emt 0:00:
00]} 50. Rh4 {[%emt 0:00:00]} Ra3+ {[%emt 0:00:00]} 51. Kg4 {[%emt 0:00:00]}
Ra8 {[%emt 0:00:00]} 52. Rh7+ {[%emt 0:00:00]} Kg8 {[%emt 0:00:00]} 53. Rg7+ {
[%emt 0:00:00]} Kh8 {[%emt 0:00:00]} 54. Rb7 {[%emt 0:00:00]} Kg8 {[%emt 0:00:
00]} 55. Kh5 {[%emt 0:00:00]} Rc8 {[%emt 0:00:00]} 56. Kg6 {[%emt 0:00:00]} Kh8
{[%emt 0:00:00]} 57. Rh7+ {[%emt 0:00:00]} Kg8 {[%emt 0:00:00]} 58. f7+ {
[%emt 0:00:00]} 1-0

[Event "44th Chess Olympiad Women 2022"]
[Site "Chennai"]
[Date "2022.08.01"]
[Round "4.17"]
[White "Morales Flores, Monserrat"]
[Black "Hoang, Thi Bao Tram"]
[Result "0-1"]
[WhiteElo "1946"]
[BlackElo "2288"]
[Annotator "NA RC"]
[PlyCount "68"]
[EventDate "2022.??.??"]
[TimeControl "60"]

1. e4 {[%emt 0:00:09]} c6 {[%emt 0:00:27]} 2. d4 {[%emt 0:00:16]} d5 {[%emt 0:
00:00]} 3. e5 {[%emt 0:00:29]} c5 {[%emt 0:02:07]} 4. dxc5 {[%emt 0:00:24]} Nc6
{[%emt 0:00:57]} 5. f4 {[%emt 0:02:04]} e6 {[%emt 0:02:27]} 6. Be3 {[%emt 0:00:
00]} Nh6 {[%emt 0:01:21]} 7. Nf3 {[%emt 0:00:49]} Nf5 {[%emt 0:00:40]} 8. Bg1 {
[%emt 0:02:02]} d4 {[%emt 0:10:10]} 9. g4 {[%emt 0:15:20]} Nh4 {[%emt 0:04:51]}
10. Nxh4 {[%emt 0:01:33]} Qxh4+ {[%emt 0:00:10]} 11. Bf2 {[%emt 0:00:07]} Qd8 {
[%emt 0:00:31]} 12. Bg2 {[%emt 0:07:36]} Bxc5 {[%emt 0:01:25]} 13. O-O {
[%emt 0:02:09]} Qc7 {[%emt 0:06:18]} 14. Qf3 {[%emt 0:08:11]} Bd7 {[%emt 0:00:
00]} 15. Nd2 {[%emt 0:02:11]} Ne7 {[%emt 0:05:33]} 16. Qxb7 {[%emt 0:01:53]}
Qxb7 {[%emt 0:00:37]} 17. Bxb7 {[%emt 0:00:03]} Rb8 {[%emt 0:00:21]} 18. Be4 {
[%emt 0:00:06]} Rxb2 {[%emt 0:03:11]} 19. Nb3 {[%emt 0:00:28]} Bb6 {[%emt 0:00:
00]} 20. Nxd4 {[%emt 0:02:44]} Rb4 {[%emt 0:01:04]} 21. c3 {[%emt 0:16:10]} Rc4
{[%emt 0:00:44]} 22. Rac1 {[%emt 0:00:19]} O-O {[%emt 0:00:21]} 23. Bd3 {
[%emt 0:02:29]} Ra4 {[%emt 0:00:40]} 24. c4 {[%emt 0:11:27]} Rc8 {[%emt 0:00:
00]} 25. Nb3 {[%emt 0:04:49]} Rxa2 {[%emt 0:02:28]} 26. c5 {[%emt 0:00:55]} Bc7
{[%emt 0:01:29]} 27. Nd4 {[%emt 0:01:46]} Nc6 {[%emt 0:11:25]} 28. Nc2 {
[%emt 0:08:41]} g5 {[%emt 0:03:11]} 29. Be3 {[%emt 0:03:51]} gxf4 {[%emt 0:00:
00]} 30. Bxf4 {[%emt 0:00:13]} Nxe5 {[%emt 0:01:52]} 31. Bxe5 {[%emt 0:03:58]}
Bxe5 {[%emt 0:00:09]} 32. Bc4 {[%emt 0:01:10]} Ra4 {[%emt 0:00:56]} 33. Ne3 {
[%emt 0:00:24]} Bd4 {[%emt 0:01:21]} 34. Rf3 {[%emt 0:00:35]} Rxc5 {[%emt 0:00:
00]} 0-1

[Event "44th Chess Olympiad Women 2022"]
[Site "Chennai"]
[Date "2022.08.01"]
[Round "4.17"]
[White "Toro Pradenas, Maria Jose"]
[Black "Nguyen, Thien Ngan"]
[Result "1-0"]
[WhiteElo "1945"]
[BlackElo "1912"]
[Annotator "NA RC"]
[PlyCount "83"]
[EventDate "2022.??.??"]
[TimeControl "60"]

1. e4 {[%emt 0:00:02]} e5 {[%emt 0:00:09]} 2. Nf3 {[%emt 0:00:07]} Nc6 {
[%emt 0:00:09]} 3. Bb5 {[%emt 0:00:08]} a6 {[%emt 0:00:09]} 4. Ba4 {[%emt 0:00:
00]} Nf6 {[%emt 0:00:10]} 5. d3 {[%emt 0:00:08]} b5 {[%emt 0:00:18]} 6. Bb3 {
[%emt 0:00:04]} Be7 {[%emt 0:00:18]} 7. O-O {[%emt 0:08:47]} d6 {[%emt 0:00:53]
} 8. c3 {[%emt 0:00:22]} O-O {[%emt 0:00:22]} 9. Nbd2 {[%emt 0:04:31]} Bb7 {
[%emt 0:03:33]} 10. d4 {[%emt 0:02:34]} Re8 {[%emt 0:05:34]} 11. Bc2 {[%emt 0:
00:00]} Bf8 {[%emt 0:00:29]} 12. d5 {[%emt 0:01:45]} Nb8 {[%emt 0:00:32]} 13.
b3 {[%emt 0:02:10]} c6 {[%emt 0:09:51]} 14. c4 {[%emt 0:06:45]} Nbd7 {[%emt 0:
00:00]} 15. Re1 {[%emt 0:18:23]} g6 {[%emt 0:04:58]} 16. Nf1 {[%emt 0:17:07]}
Nb6 {[%emt 0:06:44]} 17. Bd3 {[%emt 0:01:59]} Bg7 {[%emt 0:11:56]} 18. Bd2 {
[%emt 0:07:23]} Nfd7 {[%emt 0:04:55]} 19. Rc1 {[%emt 0:03:32]} Rc8 {[%emt 0:00:
00]} 20. Ne3 {[%emt 0:04:46]} cxd5 {[%emt 0:08:38]} 21. Nxd5 {[%emt 0:01:34]}
Nxd5 {[%emt 0:05:48]} 22. cxd5 {[%emt 0:00:07]} Rxc1 {[%emt 0:00:23]} 23. Qxc1
{[%emt 0:02:06]} Nc5 {[%emt 0:00:16]} 24. Bb1 {[%emt 0:00:47]} Qd7 {[%emt 0:00:
00]} 25. Bb4 {[%emt 0:02:28]} Rc8 {[%emt 0:00:24]} 26. Qg5 {[%emt 0:01:03]} f6
{[%emt 0:07:13]} 27. Qg3 {[%emt 0:01:15]} Qd8 {[%emt 0:02:14]} 28. h4 {[%emt 0:
00:00]} a5 {[%emt 0:00:59]} 29. Bd2 {[%emt 0:00:08]} b4 {[%emt 0:01:15]} 30. h5
{[%emt 0:00:20]} g5 {[%emt 0:02:05]} 31. Nxg5 {[%emt 0:00:51]} fxg5 {[%emt 0:
00:00]} 32. Bxg5 {[%emt 0:00:03]} Qe8 {[%emt 0:01:16]} 33. h6 {[%emt 0:02:32]}
Bf8 {[%emt 0:01:01]} 34. Qh4 {[%emt 0:01:19]} Qg6 {[%emt 0:00:31]} 35. Re3 {
[%emt 0:00:22]} Nd7 {[%emt 0:00:53]} 36. Rg3 {[%emt 0:00:24]} Kh8 {[%emt 0:00:
00]} 37. Bd3 {[%emt 0:03:46]} Qf7 {[%emt 0:00:34]} 38. Bb5 {[%emt 0:00:17]}
Bxh6 {[%emt 0:00:35]} 39. Qxh6 {[%emt 0:00:18]} Rg8 {[%emt 0:00:30]} 40. Bxd7 {
[%emt 0:00:13]} Rg6 {[%emt 0:00:25]} 41. Be6 {[%emt 0:31:23]} Qe8 {[%emt 0:00:
00]} 42. Bf6+ {[%emt 0:00:16]} 1-0